[Event "Caplin Hastings Masters 2023-24"]
[Site "Hastings"]
[Date "2024.01.04"]
[Round "8.34"]
[White "Suez-Panama, Gilles"]
[Black "Park, Inchan"]
[Result "1-0"]
[ECO "A05"]
[WhiteElo "1868"]
[BlackElo "1768"]
[Annotator "NA RC"]
[PlyCount "113"]
[EventDate "2023.12.18"]
[EventType "swiss"]
[EventCountry "ENG"]
[SourceTitle "playchess.com"]
[Source "ChessBase"]
[SourceQuality "1"]
[TimeControl "40/6000+30:3000+30"]

1. Nf3 {[%emt 0:01:51]} Nf6 {[%emt 0:00:11]} 2. g3 {[%emt 0:00:28]} b6 {[%emt 0:00:10]} 3. Bg2 {[%emt 0:00:07]} Bb7 {[%emt 0:00:05]} 4. O-O {[%emt 0:00:15]} g6 {[%emt 0:00:04]} 5. d3 {[%emt 0:00:13]} d5 {[%emt 0:00:21]} 6. c3 {[%emt 0:00:48]} Bg7 {[%emt 0:00:37]} 7. Qa4+ {[%emt 0:01:12]} Nbd7 {[%emt 0:06:22]} 8. Re1 {[%emt 0:05:16]} O-O {[%emt 0:06:02]} 9. Qh4 {[%emt 0:03:00]} e5 {[%emt 0:05:35]} 10. Bh6 {[%emt 0:01:08]} Nh5 {[%emt 0:06:46]} 11. Bxg7 {[%emt 0:06:36]} Qxh4 {[%emt 0:02:23]} 12. Nxh4 {[%emt 0:00:17]} Nxg7 {[%emt 0:28:00]} 13. Nf3 {[%emt 0:11:54]} Rfe8 {[%emt 0:07:07]} 14. d4 {[%emt 0:06:30]} e4 {[%emt 0:03:40]} 15. Nfd2 {[%emt 0:00:59]} Ne6 {[%emt 0:04:12]} 16. e3 {[%emt 0:02:27]} b5 {[%emt 0:07:36]} 17. Na3 {[%emt 0:07:40]} a6 {[%emt 0:02:04]} 18. Nb3 {[%emt 0:05:55]} Rac8 {[%emt 0:01:10]} 19. Na5 {[%emt 0:01:27]} Ba8 {[%emt 0:00:06]} 20. h4 {[%emt 0:05:42]} c5 {[%emt 0:02:47]} 21. Nc2 {[%emt 0:00:24]} Nb6 {[%emt 0:01:59]} 22. dxc5 {[%emt 0:05:27]} Nxc5 {[%emt 0:00:13]} 23. Re2 {[%emt 0:08:57]} Nd3 {[%emt 0:02:29]} 24. Nb4 {[%emt 0:01:33]} Nxb4 {[%emt 0:02:11]} 25. cxb4 {[%emt 0:00:06]} Nc4 {[%emt 0:00:35]} 26. Nb3 {[%emt 0:01:03]} Bc6 {[%emt 0:00:35]} 27. Nc5 {[%emt 0:02:43]} a5 {[%emt 0:02:00]} 28. b3 {[%emt 0:02:36]} Ne5 {[%emt 0:04:04]} 29. bxa5 {[%emt 0:00:26]} b4 {[%emt 0:00:04]} 30. Rd2 {[%emt 0:04:35]} Red8 {[%emt 0:01:45]} 31. Na6 {[%emt 0:02:49]} Nd3 {[%emt 0:08:20]} 32. Bf1 {[%emt 0:02:49]} Ne5 {[%emt 0:00:02]} 33. Bg2 {[%emt 0:04:05]} Nd3 {[%emt 0:00:09]} 34. Bf1 {[%emt 0:00:58]} Ne5 {[%emt 0:00:24]} 35. Be2 {[%emt 0:02:27]} Bb5 {[%emt 0:04:30]} 36. Nxb4 {[%emt 0:00:29]} Ra8 {[%emt 0:00:34]} 37. a6 {[%emt 0:02:15]} Bxe2 {[%emt 0:01:13]} 38. Rxe2 {[%emt 0:00:06]} Nf3+ {[%emt 0:00:17]} 39. Kg2 {[%emt 0:00:49]} f5 {[%emt 0:00:06]} 40. Nc6 {[%emt 0:02:18]} Rd6 {[%emt 0:00:18]} 41. Nd4 {[%emt 0:50:57]} Ne5 {[%emt 0:50:23]} 42. a7 {[%emt 0:00:41]} Rb6 {[%emt 0:00:29]} 43. a4 {[%emt 0:01:43]} Rxa7 {[%emt 0:00:44]} 44. a5 {[%emt 0:00:14]} Rba6 {[%emt 0:00:00]} 45. b4 {[%emt 0:00:00]} Nd3 {[%emt 0:00:00]} 46. Ra4 {[%emt 0:00:00]} Ne5 {[%emt 0:00:00]} 47. Rea2 {[%emt 0:00:00]} Nc4 {[%emt 0:00:00]} 48. Nb3 {[%emt 0:00:00]} Ra8 {[%emt 0:00:00]} 49. b5 {[%emt 0:00:00]} R6a7 {[%emt 0:00:00]} 50. a6 {[%emt 0:00:00]} Rb8 {[%emt 0:00:00]} 51. Nd4 {[%emt 0:00:00]} Nb6 {[%emt 0:00:00]} 52. Nc6 {[%emt 0:00:00]} Nxa4 {[%emt 0:00:00]} 53. Nxb8 {[%emt 0:00:00]} Nb6 {[%emt 0:00:00]} 54. Nc6 {[%emt 0:00:00]} Rc7 {[%emt 0:00:00]} 55. a7 {[%emt 0:00:00]} Na8 {[%emt 0:00:00]} 56. Rd2 {[%emt 0:00:00]} Rd7 {[%emt 0:00:00]} 57. Rxd5 {[%emt 0:00:00]} 1-0

[Event "Caplin Hastings Masters 2023-24"]
[Site "Hastings"]
[Date "2024.01.04"]
[Round "8.36"]
[White "Flynn, David"]
[Black "Moracchini, Margaux"]
[Result "0-1"]
[ECO "B06"]
[WhiteElo "1791"]
[BlackElo "1922"]
[Annotator "RC"]
[PlyCount "114"]
[EventDate "2023.12.18"]
[EventType "swiss"]
[EventCountry "ENG"]
[SourceTitle "playchess.com"]
[Source "ChessBase"]
[SourceQuality "1"]
[TimeControl "40/6000+30:3000+30"]

1. e4 {[%emt 0:00:03]} c5 {[%emt 0:05:36]} 2. Nc3 {[%emt 0:00:04]} d6 {[%emt 0:01:28]} 3. f4 {[%emt 0:00:05]} g6 {[%emt 0:00:20]} 4. Nf3 {[%emt 0:00:13]} Bg7 {[%emt 0:00:14]} 5. d4 {[%emt 0:03:35]} cxd4 {[%emt 0:01:22]} 6. Nxd4 {[%emt 0:00:04]} Nc6 {[%emt 0:00:25]} 7. Bb5 {[%emt 0:06:09]} Bd7 {[%emt 0:00:27]} 8. Be3 {[%emt 0:02:45]} Nf6 {[%emt 0:01:15]} 9. Qd2 {[%emt 0:01:36]} O-O {[%emt 0:04:05]} 10. O-O-O {[%emt 0:00:34]} Nxd4 {[%emt 0:07:49]} 11. Bxd7 {[%emt 0:01:50]} Nxc2 {[%emt 0:04:05]} 12. Qxc2 {[%emt 0:02:25]} Qxd7 {[%emt 0:02:06]} 13. e5 {[%emt 0:07:17]} Qe6 {[%emt 0:06:43]} 14. Bd4 {[%emt 0:00:34]} dxe5 {[%emt 0:01:05]} 15. Bxe5 {[%emt 0:01:06]} b5 {[%emt 0:05:14]} 16. Rhe1 {[%emt 0:04:29]} Rac8 {[%emt 0:10:04]} 17. a3 {[%emt 0:20:58]} a5 {[%emt 0:11:57]} 18. Bc7 {[%emt 0:09:05]} Qg4 {[%emt 0:00:00]} 19. h3 {[%emt 0:12:28]} Qh4 {[%emt 0:00:00]} 20. Bxa5 {[%emt 0:04:14]} Qxf4+ {[%emt 0:00:00]} 21. Kb1 {[%emt 0:00:17]} e6 {[%emt 0:03:09]} 22. Bb4 {[%emt 0:08:47]} Rfe8 {[%emt 0:02:08]} 23. Qe2 {[%emt 0:07:00]} Rc4 {[%emt 0:14:12]} 24. Rf1 {[%emt 0:05:50]} Qh4 {[%emt 0:01:51]} 25. Qf3 {[%emt 0:04:56]} g5 {[%emt 0:14:10]} 26. Qb7 {[%emt 0:01:38]} Qh5 {[%emt 0:07:53]} 27. Qxb5 {[%emt 0:00:29]} Qg6+ {[%emt 0:01:43]} 28. Ka2 {[%emt 0:00:41]} Rcc8 {[%emt 0:00:22]} 29. Qe2 {[%emt 0:00:40]} Nd5 {[%emt 0:01:36]} 30. Nxd5 {[%emt 0:02:36]} exd5 {[%emt 0:00:04]} 31. Qd3 {[%emt 0:00:57]} Qxd3 {[%emt 0:01:22]} 32. Rxd3 {[%emt 0:00:04]} Rc2 {[%emt 0:00:25]} 33. Rb1 {[%emt 0:02:19]} Ree2 {[%emt 0:00:32]} 34. Rb3 {[%emt 0:00:13]} Rxg2 {[%emt 0:00:18]} 35. a4 {[%emt 0:00:21]} f5 {[%emt 0:01:16]} 36. a5 {[%emt 0:00:32]} Rc6 {[%emt 0:01:13]} 37. Ka3 {[%emt 0:00:37]} g4 {[%emt 0:01:02]} 38. hxg4 {[%emt 0:00:06]} fxg4 {[%emt 0:00:26]} 39. Ka4 {[%emt 0:00:11]} Re2 {[%emt 0:01:02]} 40. Rg3 {[%emt 0:00:49]} h5 {[%emt 0:00:40]} 41. Kb5 {[%emt 0:02:06]} Rc8 {[%emt 0:12:04]} 42. Bd6 {[%emt 0:11:54]} Kf7 {[%emt 0:04:11]} 43. b4 {[%emt 0:00:54]} Ke6 {[%emt 0:00:19]} 44. Bf4 {[%emt 0:08:08]} Bd4 {[%emt 0:00:51]} 45. Rd3 {[%emt 0:03:40]} Re4 {[%emt 0:04:18]} 46. Bg3 {[%emt 0:02:20]} Bf6 {[%emt 0:03:11]} 47. Rbd1 {[%emt 0:07:49]} h4 {[%emt 0:03:09]} 48. Be1 {[%emt 0:04:11]} d4 {[%emt 0:01:29]} 49. Kb6 {[%emt 0:04:57]} Kd5 {[%emt 0:07:52]} 50. Kb7 {[%emt 0:02:23]} Rce8 {[%emt 0:00:08]} 51. Bf2 {[%emt 0:01:37]} R4e7+ {[%emt 0:03:03]} 52. Ka6 {[%emt 0:00:33]} Ra8+ {[%emt 0:03:34]} 53. Kb5 {[%emt 0:00:14]} Re4 {[%emt 0:01:46]} 54. a6 {[%emt 0:01:43]} g3 {[%emt 0:00:50]} 55. Bxg3 {[%emt 0:00:28]} hxg3 {[%emt 0:00:04]} 56. Rxg3 {[%emt 0:00:04]} Re6 {[%emt 0:01:16]} 57. Ra3 {[%emt 0:00:34]} Rb8+ {[%emt 0:00:42]} 0-1

[Event "Caplin Hastings Masters 2023-24"]
[Site "Hastings"]
[Date "2024.01.04"]
[Round "8.37"]
[White "Weersing, Abigail Riis"]
[Black "Howell, Oliver W"]
[Result "0-1"]
[ECO "D14"]
[WhiteElo "2056"]
[BlackElo "1782"]
[Annotator "RC"]
[PlyCount "114"]
[EventDate "2023.12.18"]
[EventType "swiss"]
[EventCountry "ENG"]
[SourceTitle "playchess.com"]
[Source "ChessBase"]
[SourceQuality "1"]
[TimeControl "40/6000+30:3000+30"]

1. d4 {[%emt 0:00:03]} d5 {[%emt 0:03:43]} 2. c4 {[%emt 0:00:08]} c6 {[%emt 0:00:06]} 3. cxd5 {[%emt 0:00:09]} cxd5 {[%emt 0:00:18]} 4. Nc3 {[%emt 0:00:08]} Nf6 {[%emt 0:00:33]} 5. Bf4 {[%emt 0:00:15]} Nc6 {[%emt 0:02:45]} 6. Nf3 {[%emt 0:00:34]} Bf5 {[%emt 0:04:33]} 7. Qb3 {[%emt 0:00:29]} Na5 {[%emt 0:03:10]} 8. Qa4+ {[%emt 0:00:08]} Bd7 {[%emt 0:01:15]} 9. Qc2 {[%emt 0:00:08]} e6 {[%emt 0:02:59]} 10. e3 {[%emt 0:00:17]} Rc8 {[%emt 0:10:34]} 11. Bd3 {[%emt 0:00:57]} Be7 {[%emt 0:04:21]} 12. O-O {[%emt 0:01:34]} O-O {[%emt 0:07:14]} 13. Ne5 {[%emt 0:01:23]} h6 {[%emt 0:08:14]} 14. Qe2 {[%emt 0:02:22]} Bc6 {[%emt 0:16:39]} 15. Rac1 {[%emt 0:03:17]} Nd7 {[%emt 0:05:05]} 16. Bb1 {[%emt 0:15:31]} Nxe5 {[%emt 0:05:20]} 17. Bxe5 {[%emt 0:04:01]} Nc4 {[%emt 0:02:27]} 18. Qg4 {[%emt 0:14:19]} Nxe5 {[%emt 0:01:34]} 19. dxe5 {[%emt 0:00:02]} Bc5 {[%emt 0:01:59]} 20. Ne4 {[%emt 0:13:04]} dxe4 {[%emt 0:00:24]} 21. Rxc5 {[%emt 0:00:15]} Qg5 {[%emt 0:02:29]} 22. Qxg5 {[%emt 0:00:31]} hxg5 {[%emt 0:00:01]} 23. Rfc1 {[%emt 0:00:23]} Rcd8 {[%emt 0:01:19]} 24. b4 {[%emt 0:08:25]} Rd5 {[%emt 0:06:16]} 25. b5 {[%emt 0:07:09]} Rfd8 {[%emt 0:06:43]} 26. Rxd5 {[%emt 0:02:18]} Bxd5 {[%emt 0:00:10]} 27. h3 {[%emt 0:04:44]} Kf8 {[%emt 0:01:29]} 28. Kh2 {[%emt 0:04:56]} Ke7 {[%emt 0:02:43]} 29. Kg3 {[%emt 0:01:25]} Kd7 {[%emt 0:01:42]} 30. Rd1 {[%emt 0:01:40]} Kc7 {[%emt 0:00:56]} 31. Rd4 {[%emt 0:00:20]} f5 {[%emt 0:01:44]} 32. exf6 {[%emt 0:00:33]} e5 {[%emt 0:00:58]} 33. Rxd5 {[%emt 0:11:06]} Rxd5 {[%emt 0:00:09]} 34. f7 {[%emt 0:02:02]} Rd8 {[%emt 0:00:30]} 35. Bxe4 {[%emt 0:00:07]} Rf8 {[%emt 0:04:46]} 36. Bd5 {[%emt 0:00:25]} Kd6 {[%emt 0:00:50]} 37. e4 {[%emt 0:00:12]} Ke7 {[%emt 0:01:13]} 38. Kg4 {[%emt 0:00:29]} Kf6 {[%emt 0:00:26]} 39. g3 {[%emt 0:05:12]} b6 {[%emt 0:00:55]} 40. h4 {[%emt 0:01:46]} gxh4 {[%emt 0:00:37]} 41. Kxh4 {[%emt 0:51:26]} g5+ {[%emt 0:13:44]} 42. Kg4 {[%emt 0:04:58]} Rc8 {[%emt 0:04:42]} 43. a4 {[%emt 0:00:00]} Rh8 {[%emt 0:02:22]} 44. f4 {[%emt 0:00:00]} gxf4 {[%emt 0:01:09]} 45. gxf4 {[%emt 0:00:00]} exf4 {[%emt 0:01:00]} 46. Kxf4 {[%emt 0:00:00]} Ke7 {[%emt 0:01:54]} 47. Kf5 {[%emt 0:00:00]} Rh3 {[%emt 0:02:36]} 48. e5 {[%emt 0:00:00]} Rh5+ {[%emt 0:01:34]} 49. Kf4 {[%emt 0:00:00]} Rh4+ {[%emt 0:01:22]} 50. Kg5 {[%emt 0:00:00]} Rxa4 {[%emt 0:02:43]} 51. e6 {[%emt 0:00:00]} a5 {[%emt 0:06:54]} 52. Bc6 {[%emt 0:00:00]} Ra1 {[%emt 0:04:06]} 53. Kh6 {[%emt 0:00:00]} a4 {[%emt 0:02:55]} 54. Be4 {[%emt 0:00:30]} a3 {[%emt 0:01:03]} 55. Kg7 {[%emt 0:00:22]} Rg1+ {[%emt 0:01:08]} 56. Bg6 {[%emt 0:00:52]} Rxg6+ {[%emt 0:00:40]} 57. Kxg6 {[%emt 0:00:07]} a2 {[%emt 0:00:22]} 0-1

[Event "Caplin Hastings Masters 2023-24"]
[Site "Hastings"]
[Date "2024.01.04"]
[Round "8.38"]
[White "Binks, Michael"]
[Black "Butt, Laurence"]
[Result "0-1"]
[ECO "A95"]
[WhiteElo "2035"]
[BlackElo "1688"]
[Annotator "NA RC"]
[PlyCount "38"]
[EventDate "2023.12.18"]
[EventType "swiss"]
[EventCountry "ENG"]
[SourceTitle "playchess.com"]
[Source "ChessBase"]
[SourceQuality "1"]
[TimeControl "40/6000+30:3000+30"]

1. d4 {[%emt 0:00:04]} d5 {[%emt 0:04:19]} 2. Nf3 {[%emt 0:00:16]} f5 {[%emt 0:00:07]} 3. c4 {[%emt 0:00:22]} e6 {[%emt 0:00:09]} 4. Nc3 {[%emt 0:01:07]} Nf6 {[%emt 0:01:54]} 5. g3 {[%emt 0:00:25]} Be7 {[%emt 0:00:12]} 6. Bg2 {[%emt 0:00:25]} O-O {[%emt 0:00:05]} 7. O-O {[%emt 0:00:33]} c6 {[%emt 0:00:31]} 8. b3 {[%emt 0:00:39]} Bd7 {[%emt 0:00:34]} 9. Bb2 {[%emt 0:03:40]} b5 {[%emt 0:00:36]} 10. Qd3 {[%emt 0:04:43]} Qb6 {[%emt 0:04:30]} 11. cxb5 {[%emt 0:11:59]} cxb5 {[%emt 0:00:23]} 12. Ne5 {[%emt 0:03:13]} Be8 {[%emt 0:02:00]} 13. f3 {[%emt 0:02:46]} b4 {[%emt 0:00:40]} 14. Nb1 {[%emt 0:02:32]} Nbd7 {[%emt 0:00:28]} 15. Kh1 {[%emt 0:00:26]} Nxe5 {[%emt 0:01:05]} 16. dxe5 {[%emt 0:00:10]} Nd7 {[%emt 0:01:17]} 17. Nd2 {[%emt 0:02:53]} Nc5 {[%emt 0:00:26]} 18. Qe3 {[%emt 0:00:43]} Nd7 {[%emt 0:08:02]} 19. Rfc1 {[%emt 0:03:57]} Qxe3 {[%emt 0:03:10]} 0-1

[Event "Caplin Hastings Masters 2023-24"]
[Site "Hastings"]
[Date "2024.01.04"]
[Round "8.39"]
[White "Alcindor, Samuel"]
[Black "Keely, Leo A"]
[Result "0-1"]
[ECO "A10"]
[WhiteElo "1714"]
[BlackElo "1908"]
[Annotator "NA RC"]
[PlyCount "130"]
[EventDate "2023.12.18"]
[EventType "swiss"]
[EventCountry "ENG"]
[SourceTitle "playchess.com"]
[Source "ChessBase"]
[SourceQuality "1"]
[TimeControl "40/6000+30:3000+30"]

1. c4 {[%emt 0:00:16]} f5 {[%emt 0:00:09]} 2. Nc3 {[%emt 0:00:09]} Nf6 {[%emt 0:00:12]} 3. g3 {[%emt 0:00:28]} g6 {[%emt 0:03:21]} 4. Bg2 {[%emt 0:00:05]} Bg7 {[%emt 0:00:11]} 5. d3 {[%emt 0:00:12]} d6 {[%emt 0:01:19]} 6. e4 {[%emt 0:00:14]} fxe4 {[%emt 0:02:18]} 7. dxe4 {[%emt 0:01:26]} Nc6 {[%emt 0:02:56]} 8. Nge2 {[%emt 0:00:15]} O-O {[%emt 0:01:37]} 9. O-O {[%emt 0:00:22]} Kh8 {[%emt 0:04:00]} 10. h3 {[%emt 0:01:33]} e5 {[%emt 0:04:38]} 11. Be3 {[%emt 0:01:30]} Nh5 {[%emt 0:05:00]} 12. Qd2 {[%emt 0:03:22]} Be6 {[%emt 0:07:36]} 13. Nd5 {[%emt 0:00:31]} Qd7 {[%emt 0:04:31]} 14. Kh2 {[%emt 0:00:20]} Rf7 {[%emt 0:02:13]} 15. Rad1 {[%emt 0:07:17]} Rd8 {[%emt 0:02:59]} 16. b4 {[%emt 0:02:34]} a6 {[%emt 0:01:06]} 17. a4 {[%emt 0:03:59]} Ne7 {[%emt 0:01:20]} 18. Nec3 {[%emt 0:00:47]} Bxd5 {[%emt 0:02:05]} 19. Nxd5 {[%emt 0:05:24]} Nc6 {[%emt 0:02:03]} 20. c5 {[%emt 0:09:55]} dxc5 {[%emt 0:05:07]} 21. Bxc5 {[%emt 0:02:18]} Nd4 {[%emt 0:00:14]} 22. g4 {[%emt 0:07:27]} c6 {[%emt 0:14:03]} 23. Bxd4 {[%emt 0:04:43]} cxd5 {[%emt 0:01:42]} 24. Bb6 {[%emt 0:02:43]} Nf4 {[%emt 0:02:58]} 25. Bxd8 {[%emt 0:00:16]} Qxd8 {[%emt 0:00:32]} 26. exd5 {[%emt 0:01:50]} Qf6 {[%emt 0:03:52]} 27. d6 {[%emt 0:06:03]} Rd7 {[%emt 0:03:10]} 28. Bxb7 {[%emt 0:02:35]} Rxb7 {[%emt 0:00:47]} 29. d7 {[%emt 0:00:12]} Qd8 {[%emt 0:00:07]} 30. Qd6 {[%emt 0:01:13]} Ra7 {[%emt 0:05:19]} 31. Qc6 {[%emt 0:01:05]} h6 {[%emt 0:04:00]} 32. Rfe1 {[%emt 0:04:39]} Kh7 {[%emt 0:01:18]} 33. Kg3 {[%emt 0:05:37]} Ra8 {[%emt 0:05:10]} 34. f3 {[%emt 0:00:06]} Rb8 {[%emt 0:00:32]} 35. Qxa6 {[%emt 0:03:32]} Rxb4 {[%emt 0:01:58]} 36. Qc8 {[%emt 0:02:13]} Rb2 {[%emt 0:08:00]} 37. Rg1 {[%emt 0:02:07]} Ne2+ {[%emt 0:00:34]} 38. Kh2 {[%emt 0:01:17]} Nxg1+ {[%emt 0:00:07]} 39. Kxg1 {[%emt 0:00:15]} Qh4 {[%emt 0:00:38]} 40. Qg8+ {[%emt 0:03:48]} Kxg8 {[%emt 0:00:54]} 41. d8=Q+ {[%emt 0:50:08]} Qxd8 {[%emt 0:50:09]} 42. Rxd8+ {[%emt 0:00:08]} Kf7 {[%emt 0:05:27]} 43. Kf1 {[%emt 0:03:25]} Ra2 {[%emt 0:01:15]} 44. Ra8 {[%emt 0:00:07]} Bf6 {[%emt 0:01:51]} 45. Ke1 {[%emt 0:00:27]} Be7 {[%emt 0:02:13]} 46. Kd1 {[%emt 0:00:26]} h5 {[%emt 0:00:37]} 47. gxh5 {[%emt 0:01:19]} gxh5 {[%emt 0:00:07]} 48. Kc1 {[%emt 0:00:24]} Rh2 {[%emt 0:00:00]} 49. a5 {[%emt 0:00:00]} Rxh3 {[%emt 0:00:00]} 50. a6 {[%emt 0:00:00]} Rxf3 {[%emt 0:00:00]} 51. Kb2 {[%emt 0:00:00]} Ra3 {[%emt 0:00:00]} 52. Ra7 {[%emt 0:00:00]} Ra5 {[%emt 0:00:00]} 53. Kc3 {[%emt 0:00:00]} h4 {[%emt 0:00:00]} 54. Ra8 {[%emt 0:00:00]} h3 {[%emt 0:00:00]} 55. Kd3 {[%emt 0:00:00]} Ra1 {[%emt 0:00:00]} 56. Kc4 {[%emt 0:00:00]} h2 {[%emt 0:00:00]} 57. Rh8 {[%emt 0:00:00]} h1=Q {[%emt 0:00:00]} 58. Rxh1 {[%emt 0:00:00]} Rxh1 {[%emt 0:00:00]} 59. Kb5 {[%emt 0:00:00]} Ra1 {[%emt 0:00:00]} 60. Kb6 {[%emt 0:00:00]} e4 {[%emt 0:00:00]} 61. Kb7 {[%emt 0:00:00]} e3 {[%emt 0:00:00]} 62. a7 {[%emt 0:00:00]} e2 {[%emt 0:00:00]} 63. Ka8 {[%emt 0:00:00]} e1=Q {[%emt 0:00:00]} 64. Kb7 {[%emt 0:00:00]} Qb4+ {[%emt 0:00:00]} 65. Ka8 {[%emt 0:00:00]} Rxa7+ {[%emt 0:00:00]} 0-1

[Event "Caplin Hastings Masters 2023-24"]
[Site "Hastings"]
[Date "2024.01.04"]
[Round "8.40"]
[White "Dewangan, Aayush"]
[Black "Ortiz Sanchez, Luis"]
[Result "1/2-1/2"]
[ECO "B33"]
[WhiteElo "1655"]
[BlackElo "1863"]
[Annotator "NA RC"]
[PlyCount "115"]
[EventDate "2023.12.18"]
[EventType "swiss"]
[EventCountry "ENG"]
[SourceTitle "playchess.com"]
[Source "ChessBase"]
[SourceQuality "1"]
[TimeControl "40/6000+30:3000+30"]

1. e4 {[%emt 0:04:09]} c5 {[%emt 0:00:19]} 2. Nf3 {[%emt 0:00:16]} Nc6 {[%emt 0:00:13]} 3. d4 {[%emt 0:00:06]} cxd4 {[%emt 0:00:06]} 4. Nxd4 {[%emt 0:00:06]} Nf6 {[%emt 0:00:13]} 5. Nc3 {[%emt 0:00:39]} e5 {[%emt 0:00:23]} 6. Ndb5 {[%emt 0:00:35]} h6 {[%emt 0:00:41]} 7. Nd6+ {[%emt 0:00:53]} Bxd6 {[%emt 0:00:14]} 8. Qxd6 {[%emt 0:00:07]} Qe7 {[%emt 0:00:06]} 9. Qxe7+ {[%emt 0:00:30]} Kxe7 {[%emt 0:00:16]} 10. f3 {[%emt 0:05:19]} Nb4 {[%emt 0:06:51]} 11. Bd3 {[%emt 0:00:33]} Nxd3+ {[%emt 0:00:44]} 12. cxd3 {[%emt 0:00:04]} b6 {[%emt 0:03:52]} 13. Be3 {[%emt 0:02:39]} d5 {[%emt 0:05:05]} 14. exd5 {[%emt 0:17:32]} Bb7 {[%emt 0:03:02]} 15. d4 {[%emt 0:00:34]} exd4 {[%emt 0:02:37]} 16. Bxd4 {[%emt 0:00:34]} Nxd5 {[%emt 0:00:11]} 17. Nxd5+ {[%emt 0:01:18]} Bxd5 {[%emt 0:00:30]} 18. O-O {[%emt 0:14:01]} f6 {[%emt 0:02:39]} 19. Rfe1+ {[%emt 0:02:23]} Kf7 {[%emt 0:00:44]} 20. a3 {[%emt 0:03:40]} Rac8 {[%emt 0:04:14]} 21. Rac1 {[%emt 0:01:25]} Be6 {[%emt 0:01:51]} 22. Bc3 {[%emt 0:02:23]} Rhd8 {[%emt 0:01:46]} 23. Re3 {[%emt 0:01:24]} b5 {[%emt 0:03:59]} 24. Rce1 {[%emt 0:01:00]} Re8 {[%emt 0:00:39]} 25. Rd1 {[%emt 0:02:27]} Red8 {[%emt 0:03:09]} 26. Red3 {[%emt 0:01:01]} Rxd3 {[%emt 0:03:27]} 27. Rxd3 {[%emt 0:00:07]} Ra8 {[%emt 0:02:28]} 28. Rd6 {[%emt 0:01:02]} a5 {[%emt 0:01:47]} 29. Rb6 {[%emt 0:02:13]} Bc4 {[%emt 0:00:24]} 30. Rb7+ {[%emt 0:07:19]} Kg8 {[%emt 0:01:36]} 31. b3 {[%emt 0:03:46]} Bxb3 {[%emt 0:00:20]} 32. Rxb5 {[%emt 0:00:07]} a4 {[%emt 0:00:15]} 33. Bb4 {[%emt 0:02:32]} Rc8 {[%emt 0:01:16]} 34. Rb7 {[%emt 0:01:06]} Bc2 {[%emt 0:05:36]} 35. Kf2 {[%emt 0:11:50]} Bb3 {[%emt 0:02:34]} 36. g4 {[%emt 0:04:49]} Rd8 {[%emt 0:00:49]} 37. Ke3 {[%emt 0:02:21]} Bc4 {[%emt 0:00:28]} 38. Ra7 {[%emt 0:02:12]} Bb3 {[%emt 0:00:12]} 39. f4 {[%emt 0:04:45]} Re8+ {[%emt 0:03:59]} 40. Kf2 {[%emt 0:09:08]} Bd1 {[%emt 0:02:42]} 41. h3 {[%emt 0:04:13]} Bb3 {[%emt 0:11:16]} 42. f5 {[%emt 0:11:10]} Rc8 {[%emt 0:09:02]} 43. Kg3 {[%emt 0:02:17]} Kh7 {[%emt 0:12:31]} 44. Kh4 {[%emt 0:07:04]} Kg8 {[%emt 0:03:34]} 45. Be7 {[%emt 0:03:10]} Re8 {[%emt 0:09:18]} 46. Rc7 {[%emt 0:05:16]} Kf7 {[%emt 0:03:08]} 47. Bc5+ {[%emt 0:01:05]} Kg8 {[%emt 0:00:13]} 48. Kg3 {[%emt 0:00:38]} Rd8 {[%emt 0:02:45]} 49. h4 {[%emt 0:01:19]} Rd3+ {[%emt 0:07:08]} 50. Kf4 {[%emt 0:00:43]} Rc3 {[%emt 0:02:03]} 51. Bd6 {[%emt 0:04:17]} Rxc7 {[%emt 0:01:10]} 52. Bxc7 {[%emt 0:00:03]} Kf7 {[%emt 0:00:15]} 53. g5 {[%emt 0:00:19]} fxg5+ {[%emt 0:00:30]} 54. hxg5 {[%emt 0:00:09]} hxg5+ {[%emt 0:00:03]} 55. Kxg5 {[%emt 0:00:02]} Bc2 {[%emt 0:00:26]} 56. Be5 {[%emt 0:00:18]} Bb3 {[%emt 0:00:28]} 57. f6 {[%emt 0:00:08]} gxf6+ {[%emt 0:00:06]} 58. Bxf6 {[%emt 0:00:07]} 1/2-1/2